bitfinex-derivatives/quotes_ETHF0:USTF0_20250430
["timestamp","ask_amount","ask_price","bid_price","bid_amount"]
[1746033647992,4.78306,1766.6,1766.5,9.88932]
[1746033649894,3.651,1766.6,1766.5,9.88932]
[1746033650198,1.13203,1766.7,1766.6,1.13206]
[1746033650490,1.13203,1766.7,1766.6,4.54566]
[1746033651884,1.13203,1766.7,1766.6,3.4136]
[1746033652185,1.13203,1766.7,1766.6,4.54566]
[1746033665198,5.3778,1766.9,1766.7,2.82999]
[1746033665395,3.649,1766.9,1766.8,1.13193]
[1746033665696,4.8373,1767.1,1766.8,1.13193]
[1746033665697,2.7613,1767.1,1767.0,1.1318]
[1746033665903,1.9405,1767.1,1767.0,41.9318]
[1746033666102,1.9405,1767.1,1767.0,47.4975]
[1746033666295,1.9405,1767.1,1767.0,6.6975]
[1746033666799,1.9405,1767.1,1767.0,47.4975]
[1746033667004,1.1318,1767.1,1767.0,47.4975]
[1746033668001,14.71749024,1767.2,1767.0,47.4975]
[1746033668002,13.09369024,1767.2,1767.1,1.13174]
[1746033668208,13.09369024,1767.2,1767.1,5.94274]
[1746033668806,15.97926024,1767.2,1767.1,5.94274]
[1746033669207,6.53457,1767.2,1767.1,5.94274]
[1746033669405,6.53457,1767.2,1767.1,4.33954]
[1746033669612,6.53457,1767.2,1767.1,3.2078]
[1746033673409,1.13174,1767.1,1767.0,1.1318]
[1746033674411,2.73084,1767.1,1767.0,1.1318]
[1746033675210,2.73084,1767.1,1767.0,4.9598]
[1746033675510,2.73084,1767.1,1767.0,6.5838]
[1746033676411,9.44469024,1767.4,1767.0,6.5838]
[1746033676617,1.13163,1767.3,1767.2,1.13161]
[1746033676802,2.83173,1767.3,1767.2,2.87191]
[1746033677107,2.83173,1767.3,1767.2,45.75961]
[1746033678513,2.83173,1767.3,1767.2,47.49991]
[1746033681115,2.83173,1767.3,1767.2,44.628]
[1746033681618,2.83173,1767.3,1767.2,4.95967]
[1746033682517,14.22428024,1767.4,1767.3,1.13161]
[1746033682816,4.77959,1767.4,1767.3,2.75811]
[1746033683217,4.77959,1767.4,1767.3,6.58611]
[1746033684111,6.51669,1767.4,1767.3,6.58611]
[1746033684407,4.77959,1767.4,1767.3,9.79391]
[1746033685008,9.44469024,1767.5,1767.4,1.13154]
[1746033685217,9.44469024,1767.5,1767.4,4.50054]
[1746033685915,10.57617024,1767.5,1767.4,4.50054]
[1746033686107,10.57617024,1767.5,1767.4,4.95954]
[1746033686314,15.05227024,1767.5,1767.4,3.828]
[1746033686605,16.72857024,1767.5,1767.4,3.828]
[1746033686809,16.72857024,1767.5,1767.4,4.95954]
[1746033687316,7.28388,1767.5,1767.4,4.95954]
[1746033689719,6.45278,1767.5,1767.4,4.95954]
[1746033689921,4.77648,1767.5,1767.4,6.61854]
[1746033690721,3.645,1767.5,1767.4,6.61854]
[1746033693518,1.13146,1767.6,1767.5,1.13148]
[1746033693819,1.13146,1767.6,1767.5,4.51708]
[1746033694321,1.13146,1767.6,1767.5,7.2136]
[1746033694520,1.13146,1767.6,1767.5,3.828]
[1746033694521,2.75476,1767.6,1767.5,3.828]
[1746033696224,2.82886,1767.5,1767.2,2.78542]
[1746033696522,1.13161,1767.3,1767.2,2.78542]
[1746033696722,1.13161,1767.3,1767.2,4.44122]
[1746033696924,2.86731,1767.3,1767.2,4.44122]
[1746033697126,2.86731,1767.3,1767.2,8.26922]
[1746033699728,2.86731,1767.3,1767.2,3.828]
[1746033701121,1.13167,1767.2,1767.1,4.3395]
[1746033701427,3.61387,1767.2,1767.1,3.2078]
[1746033704129,1.1318,1767.0,1766.9,2.01116]
[1746033704521,1.1318,1767.0,1766.9,0.8793]
[1746033704724,1.1318,1767.0,1766.9,2.01116]
[1746033705125,1.1318,1767.0,1766.9,4.95986]
[1746033705625,1.1318,1767.0,1766.9,7.51436]
[1746033706728,1.1318,1767.0,1766.9,8.31226]
[1746033708637,1.1318,1767.0,1766.9,7.1804]
[1746033709928,1.1318,1767.0,1766.9,3.828]
[1746033710433,1.13186,1766.9,1766.8,7.0358]
[1746033710629,1.93366,1766.9,1766.8,3.828]
[1746033711225,1.13206,1766.6,1766.5,3.2078]
[1746033712027,1.13206,1766.6,1766.5,5.93762]
[1746033712227,4.77506,1766.7,1766.6,1.13206]
[1746033712426,4.77506,1766.7,1766.6,3.56466]
[1746033712832,4.77506,1766.7,1766.6,2.4326]
[1746033715525,4.77506,1766.7,1766.6,3.56466]
[1746033718226,4.77506,1766.7,1766.6,2.4326]
[1746033719036,4.77506,1766.7,1766.6,3.56466]
[1746033719439,4.77506,1766.7,1766.6,2.4326]
[1746033719838,4.77506,1766.7,1766.6,3.56466]
[1746033722138,4.77506,1766.7,1766.6,2.4326]
[1746033723039,1.13206,1766.6,1766.5,3.828]
[1746033723339,1.13212,1766.5,1766.4,1.97058]
[1746033724139,1.13212,1766.5,1766.4,5.79858]
[1746033727844,2.79032,1766.5,1766.4,5.79858]
[1746033728943,1.13211,1766.6,1766.5,1.13206]
[1746033729240,1.13211,1766.6,1766.5,4.96006]
[1746033729840,1.13197,1766.8,1766.7,1.13199]
[1746033730039,4.77597,1766.8,1766.7,4.33979]
[1746033730241,4.77597,1766.8,1766.7,8.16779]
[1746033730442,4.77597,1766.8,1766.7,9.02119]
[1746033730949,3.644,1766.8,1766.7,9.02119]
[1746033731739,4.77593,1766.8,1766.7,9.02119]
[1746033732045,3.644,1766.8,1766.7,9.02119]
[1746033734549,3.644,1766.8,1766.7,10.69989]
[1746033735050,2.74603,1767.0,1766.9,1.13186]
[1746033735442,2.74603,1767.0,1766.9,1.99506]
[1746033736139,2.74603,1767.0,1766.9,5.82306]
[1746033736843,4.77579,1767.1,1767.0,1.1318]
[1746033737048,4.77579,1767.1,1767.0,2.8447]
[1746033737248,3.644,1767.1,1767.0,3.7041]
[1746033737452,4.77574,1767.1,1767.0,3.7041]
[1746033738250,4.77574,1767.1,1767.0,7.5321]
[1746033739146,4.08648039,1767.1,1767.0,7.5321]
[1746033739546,5.21822039,1767.1,1767.0,7.5321]
[1746033739750,6.87062039,1767.1,1767.0,4.9598]
[1746033740043,6.87062039,1767.1,1767.0,3.828]
[1746033740446,6.87062039,1767.1,1767.0,4.9598]
[1746033740648,6.87062039,1767.1,1767.0,3.828]
[1746033741350,1.1318,1767.0,1766.9,4.33961]
[1746033741546,3.17918277,1767.0,1766.9,4.33961]
[1746033741743,3.17918277,1767.0,1766.9,3.2078]
[1746033741948,1.13206,1766.7,1766.6,3.7075]
[1746033742144,1.13206,1766.7,1766.6,1.132]
[1746033742145,1.57454277,1766.7,1766.6,1.132]
[1746033742345,2.04738277,1766.7,1766.6,41.932]
[1746033742647,0.44248277,1766.7,1766.6,43.6596]
[1746033742847,1.57447277,1766.7,1766.6,43.6596]
[1746033743048,1.57450489,1766.7,1766.6,43.6596]
[1746033743246,3.17944752,1766.7,1766.6,43.6596]
[1746033743952,2.04745752,1766.7,1766.6,43.6596]
[1746033744252,0.44254478,1766.7,1766.6,43.6596]
[1746033744851,4.77398,1766.8,1766.7,1.13199]
[1746033745051,4.08455297,1766.8,1766.7,5.98969]
[1746033745255,4.08455297,1766.8,1766.7,9.81769]
[1746033745649,5.21648297,1766.8,1766.7,9.81769]
[1746033745855,6.82898297,1766.8,1766.7,6.60989]
[1746033746955,6.82862035,1766.8,1766.7,6.60989]
[1746033748653,6.82863019,1766.8,1766.7,4.95999]
[1746033748954,6.82863019,1766.8,1766.7,3.828]
[1746033750256,1.13199,1766.7,1766.6,1.13205]
[1746033750457,2.45139019,1766.7,1766.6,1.13205]
[1746033750645,4.04709019,1766.7,1766.6,1.13205]
[1746033754954,1.13206,1766.6,1766.5,7.0358]
[1746033755254,1.13218,1766.4,1766.3,2.79921]
[1746033755454,1.57438019,1766.4,1766.3,1.13221]
[1746033755845,2.40718019,1766.4,1766.3,1.13221]
[1746033756048,4.12680606,1766.4,1766.3,1.13221]
[1746033756250,4.12680606,1766.4,1766.3,4.96021]
[1746033758659,4.12662835,1766.4,1766.3,4.96021]
[1746033761759,4.12640926,1766.4,1766.3,4.96021]
[1746033763361,4.12632267,1766.4,1766.3,4.96021]
[1746033765659,4.12632267,1766.4,1766.3,3.828]
[1746033766054,4.12632267,1766.4,1766.3,4.96025]
[1746033768467,4.12632267,1766.4,1766.3,6.71305]
[1746033773678,4.12632267,1766.4,1766.3,5.5808]
[1746033773875,4.12632267,1766.4,1766.3,3.828]
[1746033774072,4.12632267,1766.4,1766.3,0.23050334]
[1746033774377,1.13251,1765.9,1765.8,5.83]
[1746033774580,1.13257,1765.8,1765.7,2.5515]
[1746033774774,4.06981267,1765.8,1765.7,3.68413]
[1746033775175,4.06981267,1765.8,1765.7,7.51213]
[1746033775379,1.57451267,1765.8,1765.7,7.51213]
[1746033776180,1.57483433,1765.8,1765.7,7.51213]
[1746033778078,1.57452621,1765.8,1765.7,7.51213]
[1746033779581,1.57436048,1765.8,1765.7,7.51213]
[1746033781190,1.13257,1765.8,1765.7,7.51213]
[1746033781484,1.57443757,1765.8,1765.7,7.51213]
[1746033782681,4.08023757,1765.8,1765.7,4.96063]
[1746033782983,4.08023757,1765.8,1765.7,3.828]
[1746033783191,4.08023757,1765.8,1765.7,4.96063]
[1746033784191,4.08023757,1765.8,1765.7,6.72913]
[1746033784696,4.08017207,1765.8,1765.7,6.72913]
[1746033785490,3.25477207,1765.8,1765.7,6.72913]
[1746033787693,0.44180207,1765.8,1765.7,6.72913]
[1746033787885,1.57437207,1765.8,1765.7,6.72913]
[1746033788692,3.25347207,1765.8,1765.7,6.72913]
[1746033789189,3.25347207,1765.8,1765.7,3.828]
[1746033789578,3.25347207,1765.8,1765.7,4.96063]
[1746033790290,3.25334022,1765.8,1765.7,4.96063]
[1746033791591,3.25334022,1765.8,1765.7,6.63193]
[1746033793587,3.25334022,1765.8,1765.7,3.828]
[1746033793896,6.46114022,1765.8,1765.7,3.828]
[1746033794285,1.13288,1765.4,1765.3,1.13283]
[1746033794486,4.77481,1765.5,1765.4,1.13276]
[1746033794695,5.21654868,1765.5,1765.4,6.04196]
[1746033795197,5.21654868,1765.5,1765.4,9.86996]
[1746033795393,4.08373868,1765.5,1765.4,9.86996]
[1746033795594,5.21649868,1765.5,1765.4,9.86996]
[1746033795795,5.21647424,1765.5,1765.4,9.86996]
[1746033796896,4.08371424,1765.5,1765.4,9.86996]
[1746033797898,5.21647424,1765.5,1765.4,9.86996]
[1746033799102,3.643,1765.8,1765.7,1.13263]
[1746033799400,4.08488302,1765.8,1765.7,4.34043]
[1746033799899,4.08488302,1765.8,1765.7,6.03583]
[1746033800099,4.08488302,1765.8,1765.7,9.86383]
[1746033801197,3.643,1765.8,1765.7,9.86383]
[1746033801403,7.55775898,1765.9,1765.8,1.13257]
[1746033801605,7.55775898,1765.9,1765.8,2.80907]
[1746033801789,6.41018898,1765.9,1765.8,7.80907]
[1746033802195,6.41018898,1765.9,1765.8,52.43707]
[1746033802401,10.05318898,1766.2,1765.9,2.83114]
[1746033802705,10.05318898,1766.2,1766.1,4.34018]
[1746033803100,10.05318898,1766.2,1766.1,6.01668]
[1746033805607,3.643,1766.2,1766.1,6.01668]
[1746033806403,1.13225,1766.4,1766.3,1.13223]
[1746033806598,1.6949,1766.2,1766.1,6.01668]
[1746033808006,6.45854,1766.5,1766.4,1.13218]
[1746033808202,7.0916,1766.5,1766.4,1.13218]
[1746033808403,3.64,1766.5,1766.4,4.33998]
[1746033808905,12.85893504,1766.8,1766.7,1.13199]
[1746033809102,12.85893504,1766.8,1766.7,4.33979]
[1746033809298,12.85893504,1766.8,1766.7,8.16779]
[1746033809497,11.20263504,1766.8,1766.7,8.16779]
[1746033809705,9.43743504,1766.8,1766.7,9.85299]
[1746033811507,1.6563,1767.1,1767.0,1.1318]
[1746033811704,3.70820742,1767.1,1767.0,4.3396]
[1746033812106,4.83994742,1767.1,1767.0,8.1676]
[1746033812408,4.83957124,1767.1,1767.0,8.1676]
[1746033812805,3.70783124,1767.1,1767.0,4.9598]
[1746033813006,9.43743504,1767.4,1767.3,1.13161]
[1746033813206,9.87079558,1767.4,1767.3,1.13161]
[1746033813615,9.43743504,1767.4,1767.3,2.85161]
[1746033814203,9.43743504,1767.4,1767.3,6.67961]
[1746033814415,11.16343504,1767.4,1767.3,6.67961]
[1746033815511,1.726,1767.4,1767.3,6.67961]
[1746033817613,2.85754,1767.4,1767.3,6.67961]
[1746033818118,2.85754,1767.4,1767.3,3.828]
[1746033818615,2.85754,1767.4,1767.3,4.95961]
[1746033819310,6.49554,1767.4,1767.3,3.828]
[1746033819508,11.49554,1767.4,1767.3,3.828]
[1746033819815,6.92698819,1767.4,1767.3,3.828]
[1746033820015,11.92698819,1767.4,1767.3,2.6558]
[1746033820314,11.92698819,1767.4,1766.9,1.13184]
[1746033820315,1.1318,1767.0,1766.9,1.13184]
[1746033820908,2.8926,1767.0,1766.9,1.13184]
[1746033821108,2.8926,1767.0,1766.9,4.95984]
[1746033821314,2.8926,1767.0,1766.9,8.16764]
[1746033821812,2.8926,1767.0,1766.9,4.95984]
[1746033822814,3.3241973,1767.0,1766.9,4.95984]
[1746033823018,2.8926,1767.0,1766.9,4.95984]
[1746033823316,3.32421147,1767.0,1766.9,4.95984]
[1746033825312,2.19241147,1767.0,1766.9,4.95984]
[1746033825618,3.638,1767.1,1767.0,1.1318]
[1746033825813,6.03637,1767.6,1767.3,1.13154]
[1746033825814,4.76959,1767.4,1767.3,1.13154]
[1746033826011,5.20160198,1767.4,1767.3,1.13154]
[1746033826211,6.96530198,1767.4,1767.3,4.95954]
[1746033826410,6.96530198,1767.4,1767.3,6.66224]
[1746033826617,5.83371198,1767.4,1767.3,6.66224]
[1746033827217,6.96525198,1767.4,1767.3,6.66224]
[1746033828616,6.96525198,1767.4,1767.3,4.95954]
[1746033828914,6.96597133,1767.4,1767.3,4.95954]
[1746033829110,6.96597133,1767.4,1767.3,3.828]
[1746033830110,1.13161,1767.3,1767.2,4.33946]
[1746033830322,3.31784133,1767.3,1767.2,4.33946]
[1746033830507,3.31840393,1767.3,1767.2,4.33946]
[1746033831019,3.31840394,1767.3,1767.2,4.33946]
[1746033831219,3.31840394,1767.3,1767.2,8.16746]
[1746033831820,3.31840394,1767.3,1767.2,3.828]
[1746033832120,1.13174,1767.1,1767.0,1.13177]
[1746033832523,1.56552164,1767.1,1767.0,1.13177]
[1746033832711,1.13186,1767.0,1766.9,1.13184]
[1746033832910,1.56564164,1767.0,1766.9,1.13184]
[1746033833118,3.22574164,1767.0,1766.9,4.95984]
[1746033833712,3.22568164,1767.0,1766.9,4.95984]
[1746033835524,2.09388164,1767.0,1766.9,4.95984]
[1746033835821,2.09388164,1767.0,1766.9,6.64554]
[1746033836025,3.22568164,1767.0,1766.9,6.64554]
[1746033837125,2.09388164,1767.0,1766.9,6.64554]
[1746033837418,0.43378164,1767.0,1766.9,6.64554]
[1746033837623,0.43378164,1767.0,1766.9,12.50374]
[1746033837824,2.90117,1767.3,1767.2,1.13167]
[1746033838127,3.33606746,1767.3,1767.2,1.13167]
[1746033838622,3.33606746,1767.3,1767.2,3.72467]
[1746033839123,3.33606746,1767.3,1767.2,7.55267]
[1746033839519,2.82853,1767.7,1767.2,7.55267]
[1746033839520,10.69815606,1768.0,1767.4,2.82873]
[1746033839820,3.637,1767.8,1767.7,1.1313]
[1746033840321,5.2958,1767.8,1767.7,1.1313]
[1746033841125,5.2958,1767.8,1767.7,4.9593]
[1746033841325,5.2958,1767.8,1767.7,8.1671]
[1746033841924,5.2958,1767.8,1767.7,9.8901]
[1746033842925,3.637,1767.8,1767.7,9.8901]
[1746033843328,7.49035606,1768.0,1767.9,1.13122]
[1746033843632,3.636,1768.1,1768.0,1.13116]
[1746033844020,5.3989,1768.1,1768.0,1.13116]
[1746033844525,5.3989,1768.1,1768.0,2.78626]
[1746033847234,5.3989,1768.1,1768.0,6.61426]
[1746033848330,5.3989,1768.1,1768.0,2.78626]
[1746033852633,1.13102,1768.3,1768.2,1.13103]
[1746033852835,5.274,1768.3,1768.2,1.13103]
[1746033853339,0.8196,1768.4,1768.3,1.13097]
[1746033853632,2.5404,1768.5,1768.4,1.1309]
[1746033853835,2.5404,1768.5,1768.4,2.8083]
[1746033855137,2.5404,1768.5,1768.4,6.6363]
[1746033856137,1.7151,1768.5,1768.4,2.8083]
[1746033856840,3.635,1768.6,1768.5,1.13084]
[1746033857037,3.635,1768.6,1768.5,5.96294]
[1746033857232,5.24,1768.6,1768.5,5.96294]
[1746033858535,6.37078,1768.6,1768.5,4.33864]
[1746033858740,1.1309,1768.5,1768.4,1.13087]
[1746033858939,1.605,1768.5,1768.4,1.13087]
[1746033859638,1.605,1768.5,1768.4,2.88937]
[1746033860134,1.605,1768.5,1768.4,6.71737]
[1746033860441,4.76583,1768.6,1768.5,1.13084]
[1746033860735,4.76583,1768.6,1768.5,6.09714]
[1746033861341,6.45513,1768.6,1768.5,6.09714]
[1746033861540,6.45513,1768.6,1768.5,4.33864]
[1746033863041,6.45513,1768.6,1768.5,1.13084]
[1746033863342,1.13103,1768.2,1768.1,1.13108]
[1746033863541,2.82764,1768.2,1767.9,3.2078]
[1746033863746,1.13116,1768.0,1767.9,4.33898]
[1746033863942,1.13116,1768.0,1767.9,1.13118]
[1746033864246,1.13129,1767.8,1767.7,3.2078]
[1746033865439,1.665,1767.9,1767.8,1.13129]
[1746033865837,1.665,1767.9,1767.8,4.44689]
[1746033866747,2.79622,1767.9,1767.8,4.44689]
[1746033867347,2.79622,1767.9,1767.8,1.13129]
[1746033868247,2.79622,1767.9,1767.8,2.79249]
[1746033868950,2.79622,1767.9,1767.8,1.13129]
[1746033869845,2.79622,1767.9,1767.8,2.86339]
[1746033870354,4.76521,1768.0,1767.9,1.13122]
[1746033870550,4.76521,1768.0,1767.9,2.86332]
[1746033870945,6.37221,1768.0,1767.9,2.86332]
[1746033873853,6.37221,1768.0,1767.9,1.13122]
[1746033874454,1.13122,1767.9,1767.8,1.93553]
[1746033874648,2.78322,1767.9,1767.8,1.93553]
[1746033877656,1.13129,1767.8,1767.7,4.3391]
[1746033877858,3.74599,1767.8,1767.7,4.3391]
[1746033880851,1.7495,1767.8,1767.7,5.9603]
[1746033881850,2.88079,1767.8,1767.7,5.9603]
[1746033883453,2.88079,1767.8,1767.7,2.7525]
[1746033884159,2.88079,1767.8,1767.7,6.5805]
[1746033884756,1.13128,1767.9,1767.8,1.13129]
[1746033885055,1.13128,1767.9,1767.8,2.73279]
[1746033885254,4.76521,1768.0,1767.9,1.13122]
[1746033885453,4.76521,1768.0,1767.9,4.46702]
[1746033885659,3.634,1768.0,1767.9,4.46702]
[1746033885961,1.733,1768.2,1768.1,1.1311]
[1746033886261,7.49035606,1768.3,1768.2,1.13103]
[1746033886561,7.49035606,1768.3,1768.2,4.33883]
[1746033886761,6.49892,1768.4,1768.3,1.13097]
[1746033887056,6.49892,1768.4,1768.3,2.81277]
[1746033887958,1.13097,1768.3,1768.2,5.77969]
[1746033888163,4.51737,1768.3,1768.2,4.95899]
[1746033889160,4.51737,1768.3,1768.2,1.13099]
[1746033893274,1.13103,1768.2,1768.1,6.02064]
[1746033893574,2.84043,1768.2,1768.1,2.81284]
[1746033894665,2.84043,1768.2,1768.1,6.02064]
[1746033895169,2.84043,1768.2,1768.1,2.81284]
[1746033896258,1.13116,1768.0,1767.9,5.19205]
[1746033896661,1.13116,1768.0,1767.9,6.92565]
[1746033898971,2.73356,1768.0,1767.9,6.92565]
[1746033900374,4.76515,1768.1,1768.0,1.13116]
[1746033900575,4.76515,1768.1,1768.0,2.86986]
[1746033901664,4.76515,1768.1,1768.0,1.7387]
[1746033901868,1.13116,1768.0,1767.9,3.2078]
[1746033902069,3.61856,1768.0,1767.9,3.2078]
[1746033903076,3.61856,1768.0,1767.9,4.33902]
[1746033903276,3.61856,1768.0,1767.9,3.2078]
[1746033903780,4.44616,1768.0,1767.9,4.33902]
[1746033903974,4.44616,1768.0,1767.9,3.2078]
[1746033906777,3.634,1768.1,1767.9,3.2078]
[1746033907078,1.13105,1768.2,1768.1,1.1311]
[1746033907472,1.1311,1768.1,1768.0,2.79031]
[1746033907679,1.1311,1768.1,1768.0,4.43211]
[1746033908179,1.1311,1768.1,1768.0,8.26011]
[1746033909174,1.1311,1768.1,1768.0,4.43211]
[1746033910483,1.1311,1768.1,1768.0,1.6592]
[1746033910774,1.1311,1768.1,1767.9,4.33899]
[1746033910775,1.13116,1768.0,1767.9,4.33899]
[1746033910980,2.79336,1768.0,1767.9,4.33899]
[1746033911181,2.79336,1768.0,1767.9,8.16699]
[1746033911381,2.79336,1768.0,1767.9,9.82539]
[1746033912590,2.79336,1768.0,1767.9,7.0358]
[1746033912780,6.42736,1768.0,1767.9,7.0358]
[1746033913283,1.13135,1767.7,1767.6,1.6584]
[1746033913479,1.13154,1767.5,1767.4,3.3524]
[1746033913684,1.13154,1767.5,1767.4,4.48394]
[1746033914077,1.13146,1767.6,1767.5,1.13148]
[1746033914278,1.13146,1767.6,1767.5,5.93468]
[1746033915484,6.47071,1767.7,1767.6,1.13142]
[1746033915673,6.47071,1767.7,1767.6,2.72682]
[1746033916088,4.76541,1767.7,1767.6,2.72682]
[1746033916279,4.76541,1767.7,1767.6,2.72336897]
[1746033923393,1.13123,1767.9,1767.8,1.13122]
[1746033923598,4.76521,1768.0,1767.9,1.13122]
[1746033924696,1.13129,1767.9,1767.8,1.13125]
[1746033924899,3.64749,1767.9,1767.8,1.13125]
[1746033925084,3.64749,1767.9,1767.8,4.95925]
[1746033925490,4.76521,1768.0,1767.9,1.13122]
[1746033925698,4.76521,1768.0,1767.9,2.86092]
[1746033926307,3.634,1768.0,1767.9,6.06872]
[1746033926491,4.76516,1768.0,1767.9,2.86092]
[1746033927399,3.634,1768.0,1767.9,6.06872]
[1746033927798,4.76516,1768.0,1767.9,6.06872]
[1746033928193,4.76516,1768.0,1767.9,9.89672]
[1746033928694,4.76516,1768.0,1767.9,50.69672]
[1746033928900,6.50786,1768.0,1767.9,50.69672]
[1746033929305,3.634,1768.0,1767.9,50.69672]
[1746033930398,4.76516,1768.0,1767.9,50.69672]
[1746033930598,6.44226,1768.0,1767.9,50.69672]
[1746033930801,5.3111,1768.0,1767.9,47.48892]
[1746033932703,5.3111,1768.0,1767.9,6.68892]
[1746033932893,6.44226,1768.0,1767.9,4.95922]
[1746033933888,6.44226,1768.0,1767.9,6.64912]
[1746033935204,5.3111,1768.0,1767.9,6.64912]
[1746033937399,3.634,1768.0,1767.9,9.85692]
[1746033937604,14.72808342,1768.3,1768.2,1.13103]
[1746033937804,13.05758342,1768.3,1768.2,4.33883]
[1746033938005,13.05758342,1768.3,1768.2,6.01763]
[1746033938210,13.05758342,1768.3,1768.2,9.84563]
[1746033938797,9.42458342,1768.3,1768.2,14.84563]
[1746033938999,11.36594194,1768.6,1768.5,1.13084]
[1746033939195,11.36594194,1768.6,1768.5,4.33864]
[1746033939402,13.04224194,1768.6,1768.5,4.33864]
[1746033940110,13.04224194,1768.6,1768.5,8.16664]
[1746033941113,13.04224194,1768.6,1768.5,4.33864]
[1746033941315,0.8802,1768.7,1768.6,1.13078]
[1746033941507,6.2296,1768.8,1768.7,1.13071]
[1746033941708,3.633,1768.8,1768.7,4.33851]
[1746033941907,3.633,1768.8,1768.7,5.94441]
[1746033942211,3.633,1768.8,1768.7,9.77241]
[1746033947315,0.8409,1769.1,1769.0,1.13052]
[1746033947515,5.60336,1769.1,1769.0,1.13052]
[1746033947811,7.30476,1769.1,1769.0,1.13052]
[1746033948212,1.13052,1769.0,1768.9,6.87193]
[1746033948409,2.83192,1769.0,1768.9,6.87193]
[1746033948609,2.83192,1769.0,1768.9,4.33833]
[1746033948815,2.83192,1769.0,1768.9,45.13833]
[1746033951007,2.83192,1769.0,1768.9,41.93053]
[1746033951813,2.83192,1769.0,1768.9,1.13053]
[1746033952007,1.7014,1769.0,1768.9,1.13053]
[1746033952205,1.7014,1769.0,1768.9,4.33833]
[1746033952606,1.7014,1769.0,1768.9,6.03963]
[1746033953817,5.60337,1769.1,1769.0,1.13052]
[1746033954015,7.20567,1769.1,1769.0,3.66172]
[1746033956814,7.20567,1769.1,1769.0,1.13052]
[1746033958113,6.0752,1769.1,1769.0,1.13052]
[1746033958317,5.2343,1769.1,1769.0,2.77292]
[1746033958719,6.36476,1769.1,1769.0,2.77292]
[1746033959017,5.2343,1769.1,1769.0,2.77292]
[1746033959220,6.36476,1769.1,1769.0,2.77292]
[1746033959524,5.2343,1769.1,1769.0,2.77292]
[1746033960114,3.632,1769.1,1769.0,2.77292]
[1746033961122,3.632,1769.1,1769.0,6.60092]
[1746033962224,3.632,1769.1,1769.0,2.77292]
[1746033964523,5.3514,1769.1,1769.0,2.77292]
[1746033964924,0.8271,1769.3,1769.2,1.13039]
[1746033965133,1.7194,1769.3,1769.2,1.13039]
[1746033965330,3.63,1769.4,1769.3,1.13033]
[1746033965530,3.63,1769.4,1769.3,4.33813]
[1746033965718,0.8132,1769.8,1769.3,3.2078]
[1746033965923,1.703,1769.7,1769.6,1.13014]
[1746033966119,1.6178,1769.8,1769.7,1.13007]
[1746033966428,6.46296,1769.9,1769.8,1.13001]
[1746033966730,4.75996,1769.9,1769.8,1.13001]
[1746033967428,98.06238692,1770.1,1770.0,1.12988]
[1746033967632,28.27438692,1770.1,1770.0,1.12988]
[1746033967832,5.56431,1770.3,1770.2,1.12975]
[1746033968131,1.12977,1770.2,1770.1,1.12977]
[1746033968931,9.39234,1770.3,1770.2,1.12975]
[1746033969232,1.12975,1770.2,1770.1,1.12977]
[1746033969927,4.4346,1770.3,1770.2,1.12975]
[1746033970326,4.4346,1770.3,1770.0,4.0529]
[1746033970529,4.4346,1770.3,1770.0,1.12987]
[1746033970833,1.12988,1770.1,1770.0,1.12987]
[1746033971031,1.12981,1770.2,1770.1,1.1298]
[1746033971234,1.12978,1770.2,1770.1,1.12977]
[1746033971837,5.56434,1770.3,1770.2,1.12975]
[1746033972740,4.95752,1770.6,1770.5,1.12956]
[1746033972926,6.62902,1770.6,1770.5,1.12956]
[1746033974237,2.80102,1770.6,1770.5,1.12956]
[1746033975337,1.12956,1770.5,1770.4,4.33738]
[1746033975737,2.80102,1770.6,1770.5,1.12956]
[1746033976928,2.80102,1770.6,1770.5,2.77566]
[1746033978734,1.6715,1770.6,1770.5,2.77566]
[1746033978940,2.801,1770.6,1770.5,2.77566]
[1746033980036,4.75846,1770.7,1770.6,1.1295]
[1746033980430,1.1295,1770.6,1770.5,2.4615]
[1746033980634,1.12956,1770.5,1770.4,3.2078]
[1746033980835,1.94426,1770.5,1770.4,4.33743]
[1746033981129,5.77226,1770.5,1770.4,4.33743]
[1746033982639,5.77226,1770.5,1770.4,3.2078]
[1746033982842,5.77226,1770.5,1770.4,4.33743]
[1746033983237,1.94426,1770.5,1770.4,4.33743]
[1746033984237,5.77226,1770.5,1770.4,4.33743]
[1746033985042,6.56996,1770.5,1770.4,4.33743]
[1746033986734,6.56996,1770.5,1770.4,3.2078]
[1746033986941,1.12982,1770.1,1770.0,7.78491]
[1746033987739,2.89632,1770.1,1770.0,7.78491]
[1746033988445,1.13001,1769.8,1769.7,7.3399]
[1746033988741,7.96381,1769.8,1769.7,7.3399]
[1746033989146,11.79181,1769.8,1769.7,7.3399]
[1746033989442,12.63491,1769.8,1769.7,7.3399]
[1746033992643,12.63889667,1769.8,1769.7,7.3399]
[1746033995342,8.58899667,1769.8,1769.7,8.46997]
[1746033995737,8.58899667,1769.8,1769.7,10.18847]
[1746033996153,4.76099667,1769.8,1769.7,10.18847]
[1746033997341,4.36569667,1769.8,1769.7,10.18847]
[1746033999249,0.73869667,1769.8,1769.7,10.18847]
[1746033999452,4.36569667,1769.8,1769.7,10.18847]
[1746034001152,3.63098667,1769.8,1769.7,10.18847]
[1746034001543,4.76099667,1769.8,1769.7,10.18847]
[1746034003154,3.63098667,1769.8,1769.7,10.18847]
[1746034003653,4.76099667,1769.8,1769.7,10.18847]
[1746034004542,0.00398667,1769.8,1769.7,15.18847]